bitfinex/quotes_SOLUSD_20241016
["timestamp","ask_amount","ask_price","bid_price","bid_amount"]
[1729089878884,6.4772,154.39,154.34,6.4789]
[1729089879304,22.482,154.42,154.34,16.1972]
[1729089879500,6.4771,154.39,154.34,22.6763]
[1729089881509,22.482,154.42,154.34,16.1972]
[1729089881712,6.4771,154.39,154.34,22.6763]
[1729089882119,6.4765,154.41,154.34,16.1972]
[1729089882288,4.81694463,154.4,154.34,20.0]
[1729089882489,6.72124734,154.45,154.41,6.4761]
[1729089882911,6.4758,154.43,154.38,16.1927]
[1729089883083,8.02761273,154.47,154.35,16.1967]
[1729089883288,27.26219803,154.46,154.35,16.1967]
[1729089883488,27.26219803,154.46,154.35,22.6753]
[1729089883489,6.4767,154.4,154.35,22.6753]
[1729089883689,6.4774,154.39,154.33,12.991]
[1729089883908,6.4774,154.39,154.33,6.4794]
[1729089884114,16.1896,154.42,154.32,16.1998]
[1729089884303,6.477,154.4,154.32,16.1998]
[1729089884509,16.37,154.43,154.35,16.1968]
[1729089884694,4.81475589,154.42,154.35,16.1968]
[1729089884896,6.4768,154.4,154.35,16.1968]
[1729089885214,23.776884,154.42,154.31,16.2003]
[1729089885419,6.4783,154.37,154.31,22.6803]
[1729089885597,6.4783,154.37,154.32,6.4798]
[1729089885795,23.776884,154.42,154.31,22.6807]
[1729089885796,6.4784,154.36,154.31,22.6807]
[1729089886687,6.4784,154.36,154.32,6.48]
[1729089886916,6.4784,154.36,154.31,22.6806]
[1729089887096,6.4788,154.35,154.29,12.5866]
[1729089887413,6.4788,154.35,154.3,6.4807]
[1729089887900,16.1916,154.41,154.29,6.4812]
[1729089887901,6.4795,154.34,154.29,6.4812]
[1729089888102,6.4787,154.35,154.3,6.4806]
[1729089888909,6.4782,154.37,154.33,6.4796]
[1729089889116,31.80449673,154.42,154.28,32.4083]
[1729089889117,8.02761273,154.42,154.29,0.1]
[1729089889406,4.81264029,154.41,154.28,68.70735074]
[1729089889610,4.81219898,154.4,154.31,16.2001]
[1729089889819,6.4784,154.36,154.31,22.6802]
[1729089889992,16.1912,154.41,154.32,6.4799]
[1729089890191,16.1912,154.41,154.31,16.2001]
[1729089890192,6.4779,154.38,154.33,6.4793]
[1729089890601,6.4788,154.35,154.31,22.6804]
[1729089891919,6.4784,154.36,154.31,22.6804]
[1729089892117,6.4788,154.35,154.31,16.2001]
[1729089892294,6.4793,154.34,154.29,6.4809]
[1729089892495,6.4793,154.34,154.3,6.4807]
[1729089892788,6.4801,154.32,154.28,22.6856]
[1729089892991,16.1954,154.37,154.29,6.4812]
[1729089893216,6.4788,154.35,154.3,6.4808]
[1729089893418,6.4781,154.37,154.32,6.4799]
[1729089893798,6.4781,154.37,154.31,16.2009]
[1729089893998,6.4781,154.37,154.33,6.4795]
[1729089894317,6.4775,154.38,154.34,6.4791]
[1729089895723,6.71034374,154.42,154.28,0.1]
[1729089896018,6.4772,154.39,154.33,22.6777]
[1729089896919,6.4772,154.39,154.34,6.479]
[1729089897801,6.4767,154.4,154.35,6.4786]
[1729089898316,6.4772,154.39,154.35,6.4786]
[1729089899096,6.4767,154.4,154.36,6.4783]
[1729089899419,6.4762,154.42,154.37,6.4776]
[1729089899994,6.4762,154.42,154.38,6.4774]
[1729089900223,6.4762,154.42,154.37,6.4778]
[1729089900724,23.776884,154.44,154.32,16.1999]
[1729089900903,6.4782,154.37,154.32,16.1999]
[1729089901099,6.4776,154.38,154.32,16.1999]
[1729089901304,6.4776,154.38,154.34,6.479]
[1729089901525,23.776884,154.44,154.29,22.356]
[1729089901743,4.80644215,154.43,154.33,0.1]
[1729089901929,22.30945171,154.47,154.42,6.4757]
[1729089902221,6.4738,154.47,154.43,6.4751]
[1729089902433,6.6639,154.5,154.38,21.6193]
[1729089902716,20.60208279,154.49,154.34,6.0903]
[1729089902925,6.4767,154.4,154.36,22.6738]
[1729089903330,6.4767,154.4,154.36,16.1955]
[1729089903503,16.1869,154.45,154.35,6.4785]
[1729089903708,6.4779,154.37,154.33,16.1987]
[1729089904334,6.478,154.37,154.32,6.4799]
[1729089904701,6.0759,154.41,154.34,6.4791]
[1729089905023,6.4773,154.39,154.35,6.4787]
[1729089905201,21.7593,154.45,154.36,16.1958]
[1729089905402,6.4758,154.42,154.38,6.4774]
[1729089905707,6.4758,154.42,154.37,6.4778]
[1729089906024,15.6834,154.45,154.36,16.1958]
[1729089906328,6.4759,154.42,154.37,6.4779]
[1729089906722,6.4774,154.39,154.34,6.479]
[1729089907228,6.4783,154.37,154.33,16.1984]
[1729089907404,6.4783,154.37,154.33,22.678]
[1729089907805,6.4783,154.37,154.33,16.1984]
[1729089908626,6.4783,154.37,154.33,22.6779]
[1729089909525,6.4776,154.38,154.33,22.6779]
[1729089910736,16.1911,154.41,154.3,6.0903]
[1729089910905,16.1939,154.38,154.3,16.2016]
[1729089911106,6.4793,154.34,154.3,16.2016]
[1729089911407,11.32310842,154.4,154.27,16.2047]
[1729089911408,6.4805,154.31,154.27,16.2047]
[1729089911611,32.2999,154.36,154.2,68.72235074]
[1729089911612,16.1031,154.36,154.23,16.2085]
[1729089911916,6.4825,154.26,154.23,16.2085]
[1729089912308,6.4822,154.27,154.23,16.2085]
[1729089912706,22.2141,154.3,154.2,16.2121]
[1729089912919,6.4813,154.29,154.24,6.4832]
[1729089913107,22.90513422,154.33,154.22,16.2099]
[1729089913309,6.4805,154.31,154.26,6.4824]
[1729089913525,32.2992,154.36,154.21,0.1]
[1729089913722,4.80048656,154.35,154.3,6.4808]
[1729089913929,6.1122,154.38,154.23,36.29905074]
[1729089914112,6.4804,154.31,154.27,6.4818]
[1729089914309,6.48,154.33,154.28,6.4815]
[1729089914528,6.1122,154.38,154.25,0.1]
[1729089914703,6.4785,154.36,154.31,6.4801]
[1729089915324,6.4785,154.36,154.27,6.4817]
[1729089915325,6.4804,154.32,154.27,6.4817]
[1729089915507,6.4804,154.32,154.26,6.2238]
[1729089915508,6.4788,154.35,154.3,6.4808]
[1729089915919,6.4793,154.34,154.29,22.6843]
[1729089916132,0.1,154.39,154.22,6.1697]
[1729089916312,6.4809,154.3,154.25,6.4826]
[1729089916912,6.4813,154.29,154.24,6.4832]
[1729089917237,16.1996,154.33,154.23,16.2091]
[1729089917532,22.3369,154.33,154.23,22.6927]
[1729089917731,6.4827,154.26,154.21,6.4843]
[1729089918236,6.483,154.25,154.2,22.6976]
[1729089918634,6.4834,154.24,154.2,22.6976]
[1729089918934,6.483,154.25,154.2,22.6976]
[1729089919324,16.2019,154.31,154.18,6.8093282]
[1729089919325,23.776884,154.3,154.18,6.8093282]
[1729089919636,16.2045,154.28,154.18,6.8093282]
[1729089919848,6.4828,154.26,154.21,6.4845]
[1729089920135,6.4842,154.23,154.19,16.2131]
[1729089921515,6.4834,154.24,154.19,22.6985]
[1729089921831,16.2044,154.28,154.19,16.2131]
[1729089922013,6.4826,154.26,154.21,6.4843]
[1729089922212,6.4828,154.26,154.21,6.4843]
[1729089922419,6.4817,154.28,154.23,6.4835]
[1729089922621,6.4822,154.27,154.23,6.4835]
[1729089922826,6.4837,154.24,154.18,16.8539282]
[1729089923131,16.2041,154.29,154.18,16.8539282]
[1729089923132,6.4855,154.2,154.18,0.6396282]
[1729089924735,16.209,154.24,154.18,0.6396282]
[1729089925059,16.2056,154.27,154.18,0.6396282]
[1729089925344,6.4831,154.25,154.2,6.4849]
[1729089925519,6.4837,154.24,154.19,22.6985]
[1729089925719,6.4845,154.22,154.18,0.6396282]
[1729089926028,16.2047,154.28,154.18,0.6396282]
[1729089926029,6.4847,154.21,154.18,0.6396282]
[1729089929146,6.2382,154.25,154.18,0.6396282]
[1729089929441,6.4855,154.19,154.18,0.6396282]
[1729089929621,6.485,154.21,154.18,0.6396282]
[1729089929821,15.3209,154.23,154.18,0.6396282]
[1729089930129,6.4851,154.2,154.18,0.6396282]
[1729089930323,15.3209,154.23,154.18,0.6396282]
[1729089930523,22.4461,154.25,154.18,0.6396282]
[1729089930723,6.4855,154.19,154.18,0.6396282]
[1729089930937,6.4854,154.2,154.18,0.6396282]
[1729089931319,16.2104,154.23,154.18,0.6396282]
[1729089931543,6.4855,154.19,154.18,0.6396282]
[1729089931916,6.4852,154.2,154.18,0.6396282]
[1729089932120,6.2382,154.25,154.18,0.6396282]
[1729089932350,6.4843,154.22,154.18,7.1253282]
[1729089933228,6.4843,154.22,154.18,0.6396282]
[1729089933428,6.4847,154.21,154.18,0.6396282]
[1729089933632,6.4843,154.22,154.18,7.1253282]
[1729089933827,6.4838,154.23,154.19,6.4854]
[1729089934032,6.4834,154.24,154.2,6.4848]
[1729089934261,6.4834,154.24,154.19,16.2133]
[1729089934262,6.4834,154.24,154.19,22.6985]
[1729089934847,6.4834,154.24,154.2,6.4849]
[1729089935224,6.4831,154.25,154.2,6.4849]
[1729089935525,15.8641,154.27,154.2,6.4849]
[1729089935738,6.4834,154.24,154.19,16.2133]
[1729089936036,6.4847,154.21,154.18,0.6396282]
[1729089936237,6.4835,154.24,154.19,6.4851]
[1729089936444,6.4829,154.25,154.2,22.6971]
[1729089936744,6.4829,154.25,154.21,6.4845]
[1729089937128,6.4839,154.23,154.19,6.4854]
[1729089937326,6.4837,154.24,154.19,6.4852]
[1729089937631,6.483,154.25,154.21,6.4845]
[1729089937842,6.4833,154.25,154.2,6.4849]
[1729089938354,6.4821,154.27,154.23,6.4838]
[1729089938534,6.482,154.28,154.24,6.4833]
[1729089938855,6.4816,154.29,154.24,22.6918]
[1729089939037,6.1141,154.33,154.24,16.2085]
[1729089939365,0.1,154.39,154.24,16.2085]
[1729089939366,6.4783,154.37,154.32,6.4796]
[1729089939652,6.4783,154.37,154.32,6.4799]
[1729089939851,6.4778,154.38,154.33,6.4796]
[1729089940429,6.4775,154.38,154.33,6.4796]
[1729089940946,13.30902366,154.41,154.29,23.776884]
[1729089941248,6.4771,154.39,154.34,22.6756]
[1729089941457,6.70602366,154.41,154.28,15.649]
[1729089941756,6.70602366,154.41,154.27,38.4346]
[1729089941757,6.4801,154.32,154.27,6.0256]
[1729089941957,6.4801,154.32,154.25,16.2072]
[1729089942157,6.4801,154.32,154.26,6.4825]
[1729089942659,6.4805,154.31,154.26,6.4825]
[1729089942831,6.2001,154.36,154.25,16.2072]
[1729089942832,6.48,154.33,154.27,6.4821]
[1729089943033,6.4791,154.35,154.3,6.4807]
[1729089943224,6.478,154.37,154.31,6.48]
[1729089943430,21.6026,154.4,154.28,16.2039]
[1729089943431,6.4791,154.35,154.28,16.2039]
[1729089943734,39.970584,154.39,154.28,16.2039]
[1729089943957,6.4794,154.34,154.29,6.4812]
[1729089944632,16.1959,154.36,154.25,16.2074]
[1729089944949,6.4803,154.32,154.26,6.4824]
[1729089945154,16.1959,154.36,154.28,6.4816]
[1729089945448,72.356284,154.39,154.29,6.4811]
[1729089945651,6.4796,154.33,154.27,16.2044]
[1729089945836,72.356284,154.39,154.27,16.2044]
[1729089946035,6.4792,154.34,154.29,6.4812]
[1729089947045,6.4796,154.33,154.29,6.4812]
[1729089947545,16.1955,154.37,154.27,22.6862]
[1729089947742,6.4804,154.31,154.27,22.6862]
[1729089948149,6.4808,154.3,154.26,6.4824]
[1729089948357,16.1977,154.35,154.27,6.482]
[1729089948527,6.4799,154.33,154.27,6.482]
[1729089948731,16.1977,154.35,154.24,16.4147]
[1729089948732,6.4788,154.35,154.31,6.4804]
[1729089949068,6.4788,154.35,154.3,6.4808]
[1729089949736,16.1942,154.38,154.28,16.2035]
[1729089949932,6.4803,154.32,154.28,16.2035]
[1729089950339,16.1942,154.38,154.28,16.2035]
[1729089950646,16.1942,154.38,154.3,6.4808]
[1729089950964,6.4801,154.32,154.28,6.4816]
[1729089951140,6.4795,154.34,154.29,6.4812]
[1729089951340,6.4788,154.35,154.3,6.4807]
[1729089951834,22.89485795,154.39,154.28,16.2042]
[1729089952042,12.49303967,154.38,154.29,6.4811]
[1729089952250,6.4795,154.34,154.29,6.4812]
[1729089952555,6.4788,154.35,154.3,6.4805]
[1729089952755,6.4788,154.35,154.28,16.2042]
[1729089952936,21.6026,154.4,154.33,6.4795]
[1729089953142,34.16983788,154.42,154.34,6.4791]
[1729089953143,6.4775,154.39,154.34,6.4791]
[1729089953645,6.4776,154.38,154.33,6.4795]
[1729089954436,16.1901,154.42,154.33,6.4795]
[1729089954640,4.80851847,154.41,154.33,6.4795]
[1729089954944,6.4779,154.37,154.33,6.4795]
[1729089955266,16.1901,154.42,154.32,6.1856]
[1729089955440,6.4765,154.41,154.37,6.4777]
[1729089955860,6.70035107,154.43,154.34,23.776884]
[1729089956066,6.70035107,154.43,154.33,16.4594]
[1729089956246,6.4746,154.45,154.41,6.4762]
[1729089956634,8.00852829,154.5,154.38,0.1]
[1729089956836,8.00852829,154.54,154.42,23.776884]
[1729089957037,4.80327243,154.53,154.44,0.1]
[1729089957245,6.69911737,154.54,154.46,16.1852]
[1729089957475,6.4724,154.51,154.46,22.6593]
[1729089957846,22.87541148,154.58,154.48,6.473]
[1729089957847,6.4716,154.53,154.48,6.473]
[1729089958057,6.4708,154.54,154.48,6.473]
[1729089958379,6.4708,154.54,154.49,6.4726]
[1729089959864,6.4723,154.51,154.46,16.1852]
[1729089960369,16.1731,154.58,154.46,16.1852]
[1729089960572,16.1731,154.58,154.49,6.4728]
[1729089960774,6.4708,154.54,154.49,6.4728]
[1729089960985,6.4699,154.57,154.49,16.1821]
[1729089961150,0.5896,154.59,154.49,16.1821]
[1729089961355,0.5896,154.59,154.51,16.1792]
[1729089961584,0.5896,154.59,154.52,6.4712]
[1729089961585,7.0586,154.59,154.52,6.4712]
[1729089961760,6.4697,154.57,154.52,6.4712]
[1729089961964,6.47,154.56,154.51,22.651]
[1729089962162,0.5896,154.59,154.51,16.1792]
[1729089962685,0.5896,154.59,154.55,6.4703]
[1729089962858,0.5896,154.59,154.54,16.1769]
[1729089963381,0.5896,154.59,154.51,6.4432]
[1729089963755,0.5896,154.59,154.52,16.1781]
[1729089964462,7.0583,154.59,154.54,6.4707]
[1729089965075,0.5896,154.59,154.55,16.1757]
[1729089965357,0.5896,154.59,154.58,6.4691]
[1729089965597,0.5896,154.59,154.55,16.1757]
[1729089965802,0.5896,154.59,154.55,22.646]
[1729089966108,0.5896,154.59,154.57,6.4695]
[1729089966281,0.5896,154.59,154.55,16.1757]
[1729089966282,0.5896,154.59,154.56,20.0]
[1729089966694,0.5896,154.59,154.58,6.4691]
[1729089967217,0.5896,154.59,154.58,50.445984]
[1729089967512,16.1583,154.72,154.66,6.4654]
[1729089967513,6.69718789,154.71,154.66,6.4654]
[1729089967813,6.69718789,154.71,154.64,6.4662]
[1729089967983,6.1353,154.74,154.63,16.1672]
[1729089968179,6.4645,154.7,154.63,16.1672]
[1729089968389,6.4649,154.68,154.63,16.1672]
[1729089968881,16.7975282,154.73,154.63,16.1672]
[1729089969083,16.7975282,154.73,154.63,22.6342]
[1729089969324,6.4652,154.68,154.63,22.6342]
[1729089969517,6.4645,154.69,154.64,6.4664]
[1729089969815,0.6396282,154.73,154.65,16.1645]
[1729089969989,6.4633,154.72,154.66,6.4654]
[1729089970185,0.6396282,154.73,154.7,6.464]
[1729089970581,0.6396282,154.73,154.69,16.1604]
[1729089970985,0.6396282,154.73,154.66,16.1642]
[1729089971216,0.6396282,154.73,154.67,23.776884]
[1729089971394,0.6396282,154.73,154.7,6.4637]
[1729089971599,0.6396282,154.73,154.71,6.4636]
[1729089971822,0.6396282,154.73,154.69,16.1612]
[1729089972115,6.4634,154.72,154.67,6.4652]
[1729089972411,0.6396282,154.73,154.65,16.1649]
[1729089972605,7.1028282,154.73,154.67,6.4652]
[1729089972811,7.1025282,154.73,154.68,6.4649]
[1729089973208,7.1025282,154.73,154.65,16.1649]
[1729089973209,0.6396282,154.73,154.67,16.1626]
[1729089973388,0.6396282,154.73,154.7,6.464]
[1729089973584,0.6396282,154.73,154.71,6.4635]
[1729089973814,0.6396282,154.73,154.72,6.4632]
[1729089974391,0.6396282,154.73,154.72,30.240084]
[1729089975922,0.6396282,154.73,154.72,6.4632]
[1729089976221,0.6396282,154.73,154.72,30.240084]
[1729089976420,0.6396282,154.73,154.71,6.4636]
[1729089977018,0.6396282,154.73,154.71,6.4634]
[1729089977228,0.6396282,154.73,154.72,6.4632]
[1729089977816,0.6396282,154.73,154.7,13.0721]
[1729089978009,7.1025282,154.73,154.69,22.6249]
[1729089978204,0.6396282,154.73,154.69,16.1604]
[1729089978407,0.6396282,154.73,154.69,22.6246]
[1729089978608,0.6396282,154.73,154.71,6.4634]
[1729089978806,0.6396282,154.73,154.72,0.12549]
[1729089979008,0.6396282,154.73,154.72,6.58869]
[1729089979205,0.6396282,154.73,154.69,22.6245]
[1729089979626,0.6396282,154.73,154.7,0.12549]
[1729089980130,6.4651,154.68,154.64,6.4665]
[1729089980330,6.4646,154.69,154.64,6.4665]
[1729089980627,6.4641,154.7,154.65,6.59149]
[1729089980939,6.4641,154.7,154.65,6.466]
[1729089981124,6.4638,154.71,154.66,0.12549]
[1729089981432,0.6396282,154.73,154.72,0.12549]
[1729089982226,0.6396282,154.73,154.72,6.58869]
[1729089982406,0.6396282,154.73,154.72,30.365574]
[1729089984405,0.6396282,154.73,154.72,50.465574]
[1729089984710,6.4583,154.84,154.79,6.58549]
[1729089985633,6.4584,154.84,154.78,30.237284]
[1729089986018,6.4591,154.82,154.77,22.6137]
[1729089986209,16.1439,154.86,154.73,20.0]
[1729089986410,16.1439,154.86,154.71,16.3074]
[1729089986411,6.4599,154.8,154.75,6.462]
[1729089986832,6.4599,154.8,154.76,0.12549]
[1729089987225,22.5405,154.82,154.7,6.4748]
[1729089987519,22.5405,154.82,154.73,0.12549]
[1729089987741,22.5405,154.82,154.74,22.6178]
[1729089987903,6.4607,154.79,154.75,0.12549]
[1729089988230,6.4615,154.77,154.75,0.12549]
[1729089988435,6.4628,154.74,154.67,16.0771]
[1729089988810,6.462,154.76,154.68,16.1621]
[1729089989011,6.4611,154.78,154.73,6.4628]
[1729089989421,6.4604,154.79,154.74,6.58779]
[1729089989709,6.4607,154.78,154.74,0.12549]
[1729089989931,6.4607,154.78,154.73,22.6197]
[1729089989932,22.5405,154.82,154.69,0.12549]
[1729089990106,6.4633,154.72,154.67,22.5423]
[1729089990305,16.153,154.77,154.67,16.1633]
[1729089990537,6.4629,154.73,154.68,6.4648]
[1729089990720,16.153,154.77,154.7,0.12549]
[1729089991124,6.4629,154.73,154.68,6.4645]
[1729089991325,6.4629,154.73,154.69,6.4645]
[1729089991537,6.4633,154.72,154.67,22.6284]
[1729089992141,6.4638,154.71,154.68,0.12549]
[1729089992323,16.153,154.77,154.67,16.1633]
[1729089992522,32.3007,154.8,154.62,58.49615074]
[1729089992523,16.1558,154.75,154.65,6.4658]
[1729089992835,6.4641,154.7,154.65,6.4661]
[1729089993340,22.6369,154.74,154.64,16.1664]
[1729089993536,6.465,154.68,154.64,16.1664]
[1729089993725,16.1578,154.73,154.64,16.1664]
[1729089994258,6.4639,154.71,154.66,0.12549]
[1729089994541,6.4639,154.71,154.67,0.12549]
[1729089994734,22.6369,154.74,154.69,0.12549]
[1729089994912,16.1544,154.76,154.69,6.58979]
[1729089995117,6.4623,154.75,154.71,0.12549]
[1729089995320,6.4625,154.74,154.71,0.12549]
[1729089995715,6.5708,154.78,154.7,16.1601]
[1729089995912,6.5708,154.78,154.71,0.12549]
[1729089996113,16.4804,154.79,154.71,0.12549]
[1729089996418,6.4612,154.77,154.73,0.12549]
[1729089996935,16.4804,154.79,154.69,6.4641]
[1729089997140,6.4629,154.73,154.7,0.12549]
[1729089997346,6.4635,154.72,154.7,0.12549]
[1729089997838,16.1525,154.78,154.68,0.12549]
[1729089998137,6.4631,154.73,154.69,0.12549]
[1729089999833,6.4621,154.75,154.71,0.12549]
[1729090000038,16.1525,154.78,154.71,0.12549]
[1729090000344,6.4621,154.75,154.71,0.12549]
[1729090000526,6.4621,154.75,154.72,0.12549]
[1729090000723,6.4616,154.76,154.73,0.12549]
[1729090000925,6.4617,154.76,154.73,0.12549]
[1729090001239,16.4804,154.79,154.73,0.12549]
[1729090001540,6.4612,154.77,154.73,0.12549]
[1729090001749,15.7242,154.71,154.55,6.3252]
[1729090002040,15.7242,154.71,154.57,6.4692]
[1729090002041,6.4672,154.63,154.57,6.4692]
[1729090002342,6.3773,154.68,154.56,16.1742]
[1729090002529,6.4667,154.64,154.6,0.12549]
[1729090003228,6.3773,154.68,154.58,6.469]
[1729090003229,6.4672,154.63,154.58,6.469]
[1729090003724,6.4663,154.65,154.61,0.12549]
[1729090004336,6.3773,154.68,154.61,0.12549]
[1729090004544,6.4666,154.64,154.61,0.12549]
[1729090004850,6.4666,154.64,154.59,0.12549]
[1729090005032,6.4666,154.64,154.59,6.59409]
[1729090007242,6.4659,154.66,154.61,6.4678]
[1729090007552,6.4659,154.66,154.62,0.12549]
[1729090007963,22.43855811,154.71,154.62,0.12549]
[1729090008139,22.43855811,154.71,154.59,23.776884]
[1729090008140,4.78610021,154.7,154.66,0.12549]
[1729090008346,6.4645,154.69,154.66,0.12549]
[1729090008653,22.1881,154.71,154.67,0.12549]
[1729090008834,22.89,154.76,154.67,0.12549]
[1729090009036,22.89,154.76,154.69,0.12549]
[1729090009037,6.4631,154.73,154.69,0.12549]
[1729090009253,6.4639,154.71,154.69,0.12549]
[1729090009562,22.89,154.76,154.67,0.12549]
[1729090009738,6.4623,154.75,154.71,0.12549]
[1729090010053,22.89,154.76,154.71,0.12549]
[1729090010054,6.4625,154.74,154.71,0.12549]
[1729090010228,6.4616,154.76,154.72,0.12549]
[1729090011258,6.4616,154.76,154.73,0.12549]
[1729090011660,6.4616,154.76,154.72,0.12549]
[1729090012164,16.1513,154.79,154.72,0.12549]
[1729090012358,6.4623,154.75,154.71,0.12549]
[1729090012777,6.4618,154.76,154.71,6.58879]
[1729090012946,6.4608,154.78,154.73,0.12549]
[1729090013140,22.0721,154.81,154.75,0.12549]
[1729090013357,6.4604,154.79,154.75,0.12549]
[1729090013553,6.461,154.78,154.75,0.12549]
[1729090013761,6.461,154.78,154.74,6.58779]
[1729090013960,22.0721,154.81,154.74,0.12549]
[1729090014256,6.4604,154.79,154.74,0.12549]
[1729090014462,22.0721,154.81,154.74,23.902374]
[1729090014660,4.80349151,154.8,154.76,0.12549]
[1729090014857,15.5851,154.81,154.76,0.12549]
[1729090015061,4.80345445,154.8,154.73,16.1566]
[1729090015261,15.5851,154.81,154.66,76.205284]
[1729090015437,4.8040534,154.79,154.7,22.6236]
[1729090015643,6.4621,154.75,154.71,6.4636]
[1729090015853,6.4614,154.77,154.7,16.1599]
[1729090016056,6.4614,154.77,154.72,6.4632]
[1729090016259,6.4614,154.77,154.73,0.12549]
[1729090016670,31.7345,154.81,154.71,0.12549]
[1729090016960,6.4608,154.78,154.74,0.12549]
[1729090017466,31.7345,154.81,154.72,16.1576]
[1729090017643,6.462,154.75,154.71,6.4636]
[1729090017847,6.462,154.75,154.69,16.1608]
[1729090018143,6.4611,154.78,154.73,6.58819]
[1729090018345,15.5851,154.81,154.75,0.12549]
[1729090018549,6.46,154.8,154.75,6.58709]
[1729090019274,15.5851,154.81,154.75,6.58709]
[1729090019454,6.4607,154.78,154.75,0.12549]
[1729090019959,6.4612,154.77,154.75,0.12549]
[1729090020168,15.5851,154.81,154.73,0.12549]
[1729090020364,28.64070096,154.8,154.73,0.12549]
[1729090020543,28.64070096,154.8,154.73,6.58829]
[1729090020544,6.4614,154.77,154.73,6.58829]
[1729090020745,16.1506,154.8,154.73,6.58829]
[1729090020953,16.1506,154.8,154.71,16.1587]
[1729090020954,6.4611,154.78,154.72,0.12549]
[1729090021158,15.5851,154.81,154.68,0.1]
[1729090021359,6.4604,154.79,154.76,0.12549]
[1729090021562,16.1472,154.83,154.76,0.12549]
[1729090021563,6.4609,154.78,154.76,0.12549]
[1729090021744,16.1501,154.8,154.71,20.0]
[1729090022072,6.462,154.75,154.71,6.4633]
[1729090022276,16.1501,154.8,154.74,0.12549]
[1729090022447,6.4613,154.77,154.74,0.12549]
[1729090022643,6.4611,154.78,154.74,6.58779]
[1729090022870,6.4611,154.78,154.73,0.12549]
[1729090023172,48.441,154.83,154.76,0.12549]
[1729090023173,16.1469,154.83,154.76,0.12549]
[1729090023368,6.4598,154.81,154.76,6.58669]
[1729090023568,16.1469,154.83,154.76,6.58669]
[1729090023777,4.8036193,154.82,154.76,0.12549]
[1729090023953,6.4604,154.79,154.76,0.12549]
[1729090024154,16.1469,154.83,154.76,0.12549]
[1729090024350,6.46,154.8,154.76,0.12549]
[1729090024854,6.4605,154.79,154.76,0.12549]
[1729090025057,16.1469,154.83,154.72,16.1575]
[1729090025260,16.1493,154.81,154.72,16.1575]
[1729090025472,6.4615,154.77,154.73,0.12549]
[1729090025775,6.4615,154.77,154.73,6.58829]
[1729090025948,23.776884,154.83,154.77,0.12549]
[1729090026148,4.80317317,154.82,154.77,0.12549]
[1729090026569,6.4591,154.82,154.78,6.58619]
[1729090026744,6.4596,154.81,154.78,0.12549]
[1729090027250,38.102,154.85,154.77,0.12549]
[1729090027456,4.80195196,154.84,154.77,0.12549]
[1729090027674,6.4595,154.81,154.77,6.58659]
[1729090029357,38.102,154.85,154.77,0.12549]
[1729090029562,16.1477,154.82,154.74,20.0]
[1729090029762,6.4605,154.79,154.75,0.12549]
[1729090029963,6.4596,154.81,154.78,0.12549]
[1729090030176,6.4591,154.82,154.78,0.12549]
[1729090030749,6.4591,154.82,154.77,0.12549]
[1729090030951,6.4582,154.84,154.79,0.12549]
[1729090031379,46.36946535,154.89,154.81,0.12549]
[1729090031550,12.48014292,154.88,154.79,6.58569]
[1729090031755,12.48014292,154.87,154.79,6.58569]
[1729090032053,4.80005497,154.86,154.79,0.12549]
[1729090032384,4.80005497,154.86,154.74,20.0]
[1729090032385,6.4594,154.82,154.77,6.461]
[1729090032568,16.1419,154.88,154.79,0.12549]
[1729090032569,0.1,154.88,154.79,0.12549]